bitfinex/quotes_BTCUSD_20251224
["timestamp","ask_amount","ask_price","bid_price","bid_amount"]
[1766587881535,1e-08,87143.0,87140.0,0.00283423]
[1766587881722,0.01168,87162.0,87149.0,0.0114746]
[1766587882007,0.00030644,87157.0,87156.0,0.02297016]
[1766587882224,0.00030644,87157.0,87140.0,0.01147578]
[1766587882225,0.000354,87156.0,87140.0,0.01147578]
[1766587882557,0.000354,87156.0,87060.0,0.20011]
[1766587882558,0.000354,87156.0,87149.0,0.0114746]
[1766587882688,0.00030644,87157.0,87145.0,0.02297016]
[1766587882689,0.00030644,87157.0,87151.0,0.06884556]
[1766587882890,0.00030644,87157.0,87148.0,0.01168]
[1766587883093,0.00030644,87157.0,87145.0,0.02297016]
[1766587883292,0.000904,87145.0,87135.0,0.01168]
[1766587883534,0.000904,87145.0,87136.0,0.02297016]
[1766587883726,0.012584,87145.0,87142.0,0.06885248]
[1766587883894,0.04596,87155.0,87144.0,0.01147525]
[1766587884097,0.04596,87155.0,87140.0,0.01164]
[1766587884303,1.4908,87155.0,87140.0,0.01164]
[1766587884503,0.000354,87140.0,87130.0,0.0114771]
[1766587884725,0.000354,87140.0,87112.0,0.34438107]
[1766587884726,0.01164,87146.0,87143.0,0.01147539]
[1766587884969,0.01164,87152.0,87146.0,0.000195]
[1766587885117,0.00030644,87157.0,87139.0,0.02297016]
[1766587885118,0.00030644,87157.0,87149.0,0.0114746]
[1766587885285,1e-08,87157.0,87155.0,0.05736905]
[1766587885488,0.01164,87175.0,87159.0,0.01147328]
[1766587885685,0.01164,87175.0,87169.0,0.01147196]
[1766587885960,1.491,87183.0,87175.0,0.05780428]
[1766587886133,1.491,87183.0,87175.0,0.05735557]
[1766587886134,1.44504,87183.0,87175.0,0.05735557]
[1766587886337,0.0002,87183.0,87180.0,0.01147052]
[1766587886536,0.0002,87183.0,87178.0,0.06882418]
[1766587886537,0.0002,87183.0,87181.0,0.02297016]
[1766587887159,0.00027715,87200.0,87183.0,0.22940252]
[1766587887409,0.00027715,87200.0,87199.0,0.02297016]
[1766587887410,0.00010642,87200.0,87199.0,0.02297016]
[1766587887615,1.44484,87212.0,87199.0,0.02297016]
[1766587887616,1.44484,87212.0,87206.0,0.0114671]
[1766587887805,0.01164,87218.0,87212.0,0.01120064]
[1766587887995,0.0033,87230.0,87219.0,0.01146539]
[1766587888150,0.04642,87250.0,87244.0,0.0114621]
[1766587888151,0.0005,87250.0,87244.0,0.0114621]
[1766587888347,0.00021636,87247.0,87246.0,0.04586367]
[1766587888548,0.0005,87250.0,87247.0,0.01146171]
[1766587888805,0.00011,87287.0,87256.0,0.00916172]
[1766587888961,0.01164,87284.0,87262.0,0.04586367]
[1766587889174,0.00011,87287.0,87266.0,0.01145921]
[1766587889383,0.00020634,87286.0,87285.0,0.04586367]
[1766587889580,0.00011,87287.0,87285.0,0.05750367]
[1766587889805,0.01421797,87300.0,87285.0,0.05750367]
[1766587890024,0.01421797,87300.0,87276.0,0.04586367]
[1766587890223,0.01421797,87300.0,87250.0,0.66268995]
[1766587890224,0.0114554,87295.0,87277.0,0.04586367]
[1766587890454,0.00011,87277.0,87267.0,0.00011]
[1766587890671,0.00011,87277.0,87268.0,0.04586367]
[1766587890951,0.01145711,87282.0,87260.0,0.01164]
[1766587890952,1.41554,87272.0,87260.0,0.01164]
[1766587891175,1.41554,87288.0,87271.0,0.04586367]
[1766587891384,0.04592,87292.0,87285.0,0.04586367]
[1766587891622,0.01421797,87300.0,87285.0,0.04586367]
[1766587891822,0.01421797,87300.0,87287.0,0.00011]
[1766587892033,0.01145554,87294.0,87287.0,0.00011]
[1766587892254,0.01145554,87294.0,87241.0,0.0114625]
[1766587892255,0.01145882,87269.0,87241.0,0.0114625]
[1766587892470,0.01146013,87259.0,87247.0,0.04586367]
[1766587892691,1.42722,87271.0,87263.0,0.00011]
[1766587892927,0.01145882,87269.0,87263.0,0.00011]
[1766587893170,0.01145882,87269.0,87233.0,0.05738355]
[1766587893171,0.05730199,87257.0,87221.0,0.05732552]
[1766587893379,0.01168,87256.0,87233.0,0.04586367]
[1766587893630,0.00011,87263.0,87257.0,0.00055]
[1766587893793,0.00011,87263.0,87247.0,0.04586367]
[1766587893794,0.00011,87269.0,87247.0,0.04586367]
[1766587894176,0.00011,87269.0,87251.0,0.04542467]
[1766587894177,0.00622993,87257.0,87251.0,0.04542467]
[1766587894428,0.00011,87251.0,87233.0,0.04586367]
[1766587894603,0.00011,87251.0,87247.0,0.04586367]
[1766587894816,0.00011,87251.0,87233.0,0.04586367]
[1766587894817,0.00011,87251.0,87234.0,0.01168]
[1766587895137,0.04588,87263.0,87247.0,0.04586367]
[1766587895286,0.45557011,87280.0,87247.0,0.04586367]
[1766587895287,1.41554,87281.0,87261.0,0.000989]
[1766587895485,1.41554,87281.0,87247.0,0.04586367]
[1766587895486,0.02313737,87280.0,87264.0,0.04586367]
[1766587895711,0.0114579,87276.0,87264.0,0.04586367]
[1766587895911,0.01168,87280.0,87239.0,0.03459738]
[1766587895912,0.01145961,87263.0,87239.0,0.03459738]
[1766587896115,0.01146,87260.0,87240.0,0.01168]
[1766587896271,0.02313974,87262.0,87253.0,0.02291738]
[1766587896272,0.01168,87262.0,87253.0,0.02291738]
[1766587896472,0.01168,87262.0,87253.0,0.02302372]
[1766587896773,3.66e-06,87253.0,87240.0,0.01168]
[1766587896975,0.01146171,87247.0,87221.0,0.02291738]
[1766587897122,1.42700197,87245.0,87222.0,0.01168]
[1766587897343,1.41554,87259.0,87237.0,0.02291738]
[1766587897696,1.41554,87259.0,87223.0,0.02291738]
[1766587897697,0.01146197,87245.0,87223.0,0.03459738]
[1766587897932,0.01168,87248.0,87238.0,0.02291738]
[1766587898329,0.01146302,87237.0,87223.0,0.02291738]
[1766587898568,0.01168,87236.0,87230.0,0.00011]
[1766587898820,0.00011,87250.0,87236.0,0.000545]
[1766587899020,0.01145987,87261.0,87245.0,0.02291738]
[1766587899211,1.42722,87262.0,87238.0,0.02291738]
[1766587899358,0.05729936,87261.0,87232.0,0.01168]
[1766587899557,0.01146184,87246.0,87230.0,0.25011]
[1766587899766,0.00011,87263.0,87246.0,0.000435]
[1766587899966,0.00594734,87248.0,87246.0,0.000435]
[1766587900213,0.00591593,87247.0,87238.0,0.02185581]
[1766587900386,0.01168,87252.0,87238.0,0.02174181]
[1766587900566,0.00522469,87239.0,87238.0,0.02174181]
[1766587900768,0.00467469,87239.0,87238.0,0.02174181]
[1766587901240,0.00467469,87239.0,87231.0,0.03459738]
[1766587901435,0.01146158,87248.0,87231.0,0.03459738]
[1766587901701,0.01168,87252.0,87231.0,0.03459738]
[1766587901978,0.000985,87231.0,87230.0,0.25011]
[1766587902172,0.000985,87231.0,87221.0,0.00010636]
[1766587902173,1.42722,87231.0,87221.0,0.00010636]
[1766587902507,0.06878486,87229.0,87221.0,0.00010636]
[1766587902709,0.06878486,87229.0,87198.0,0.01146815]
[1766587902710,0.01168,87231.0,87172.0,0.04588]
[1766587902963,1.40887,87211.0,87185.0,0.02291738]
[1766587903164,1.40887,87208.0,87199.0,0.02291738]
[1766587903293,0.01179,87215.0,87199.0,0.02291738]
[1766587903499,0.01146723,87205.0,87199.0,0.02291738]
[1766587903796,0.01179,87215.0,87195.0,0.00011]
[1766587903797,0.01146815,87198.0,87195.0,0.00011]
[1766587904088,0.01146815,87198.0,87179.0,0.01168]
[1766587904293,0.00044,87179.0,87156.0,0.01147367]
[1766587904496,0.22941909,87177.0,87145.0,0.04588]
[1766587904643,0.01168,87176.0,87169.0,0.00011]
[1766587904848,0.01146,87176.0,87169.0,0.00011]
[1766587905051,0.01147157,87172.0,87169.0,0.00046467]
[1766587905232,0.02293104,87176.0,87169.0,0.00046467]
[1766587905460,0.01146,87176.0,87169.0,0.00046467]
[1766587905738,0.01146,87176.0,87139.0,0.22951738]
[1766587905739,1.40887,87166.0,87146.0,0.02291738]
[1766587905935,0.00045933,87169.0,87161.0,0.02291738]
[1766587906224,0.00045933,87169.0,87149.0,0.0114746]
[1766587906225,0.01147078,87178.0,87162.0,0.02291738]
[1766587906434,0.00011,87175.0,87162.0,0.02291738]
[1766587906838,0.01146959,87187.0,87155.0,0.02330381]
[1766587906839,0.00228491,87163.0,87155.0,0.00011]
[1766587907055,0.01172,87177.0,87162.0,0.02291738]
[1766587907231,0.01172,87178.0,87162.0,0.02291738]
[1766587907643,0.01146907,87191.0,87162.0,0.02291738]
[1766587907808,0.01172,87188.0,87176.0,0.02291738]
[1766587908174,0.000549,87176.0,87166.0,0.01172]
[1766587908380,0.000549,87176.0,87162.0,0.02291738]
[1766587908779,1.40887,87183.0,87162.0,0.02291738]
[1766587908983,0.01146894,87192.0,87162.0,0.0230238]
[1766587909185,0.01172,87188.0,87176.0,0.02291738]
[1766587909421,0.06881449,87191.0,87176.0,0.02291738]
[1766587909620,0.000549,87176.0,87166.0,0.01172]
[1766587910089,0.01172,87176.0,87162.0,0.0230238]
[1766587910454,0.0114692,87190.0,87162.0,0.0230238]
[1766587910455,0.01172,87179.0,87162.0,0.03449668]
[1766587910658,0.01183,87189.0,87162.0,0.03449668]
[1766587910858,0.01183,87189.0,87162.0,0.0230238]
[1766587911059,0.01183,87189.0,87162.0,0.03449668]
[1766587911260,0.01146973,87186.0,87162.0,0.0230238]
[1766587911479,0.01146946,87188.0,87162.0,0.0230238]
[1766587911808,0.02329933,87189.0,87162.0,0.0230238]
[1766587911809,0.01183,87189.0,87177.0,0.02291738]
[1766587912157,0.01183,87189.0,87173.0,0.01172]
[1766587912613,0.01183,87189.0,87176.0,0.02291738]
[1766587912966,0.000549,87176.0,87173.0,0.01172]
[1766587913176,0.00055,87173.0,87163.0,0.03463738]
[1766587913622,0.00011,87189.0,87171.0,0.0114717]
[1766587913855,0.00011,87189.0,87183.0,0.02291738]
[1766587914067,0.00011,87189.0,87173.0,0.01147144]
[1766587914068,0.00011,87189.0,87184.0,0.02291738]
[1766587914293,0.00011,87189.0,87185.0,0.02291738]
[1766587914953,0.00011,87189.0,87175.0,0.01172]
[1766587914954,0.000549,87185.0,87175.0,0.01172]
[1766587915163,0.01146723,87205.0,87175.0,0.01172]
[1766587915164,0.01157591,87215.0,87184.0,0.02291738]
[1766587915370,0.00011,87215.0,87199.0,0.02291738]
[1766587915602,0.00011,87215.0,87202.0,0.05733813]
[1766587915812,0.00011,87215.0,87213.0,0.02291738]
[1766587916056,0.000549,87213.0,87203.0,0.01172]
[1766587916269,0.00011,87215.0,87200.0,0.01172]
[1766587916642,0.00011,87215.0,87199.0,0.02291738]
[1766587916643,0.00046401,87215.0,87199.0,0.02291738]
[1766587916845,0.000549,87199.0,87179.0,0.01147065]
[1766587917051,0.000549,87199.0,87198.0,0.02291738]
[1766587917499,0.000549,87199.0,87185.0,0.02318986]
[1766587917500,0.01146644,87211.0,87185.0,0.01172]
[1766587917713,0.01172,87214.0,87184.0,0.02291738]
[1766587917714,0.00210445,87186.0,87184.0,0.02291738]
[1766587917912,0.01146946,87188.0,87175.0,0.01172]
[1766587918113,0.44908657,87190.0,87177.0,0.02291738]
[1766587918338,1.40887,87191.0,87177.0,0.02291738]
[1766587918960,1.40887,87191.0,87163.0,0.02291738]
[1766587918961,0.00044258,87177.0,87163.0,0.02291738]
[1766587919313,0.01146986,87185.0,87167.0,0.00011]
[1766587919445,0.00010617,87185.0,87167.0,0.00011]
[1766587920046,0.46055709,87180.0,87164.0,0.00530457]
[1766587920253,0.44908657,87180.0,87164.0,0.00530457]
[1766587920461,0.000882,87164.0,87139.0,0.01147591]
[1766587920686,0.000882,87164.0,87160.0,0.02291738]
[1766587920863,0.01172,87170.0,87160.0,0.02291738]
[1766587921068,0.01172,87170.0,87146.0,0.02291738]
[1766587921069,0.01147341,87158.0,87146.0,0.02291738]
[1766587921322,0.01147302,87161.0,87130.0,0.02291738]
[1766587921323,0.01147354,87157.0,87130.0,0.02291738]
[1766587921564,0.44908657,87150.0,87145.0,0.00011]
[1766587921783,1.35723,87156.0,87147.0,0.02291738]
[1766587921990,0.01172,87167.0,87147.0,0.02291738]
[1766587922198,1.35550943,87172.0,87161.0,0.02291738]
[1766587922919,0.0114717,87171.0,87161.0,0.02291738]
[1766587923147,0.000882,87161.0,87155.0,0.00011]
[1766587923596,0.00116039,87156.0,87155.0,0.00011]
[1766587923818,0.00116039,87156.0,87147.0,0.02302382]
[1766587924031,0.01172,87167.0,87147.0,0.02302382]
[1766587924202,0.44908657,87170.0,87148.0,0.00113847]
[1766587924360,0.44841657,87160.0,87147.0,0.02302382]
[1766587924562,0.01147354,87157.0,87147.0,0.00010644]
[1766587924784,1.35723,87159.0,87147.0,0.00010644]
[1766587924993,0.06882605,87177.0,87159.0,0.000217]
[1766587925163,0.44908657,87170.0,87159.0,0.000217]
[1766587925365,0.02319196,87169.0,87148.0,0.02291738]
[1766587925641,0.44908657,87160.0,87148.0,0.02291738]
[1766587926031,1.36895,87159.0,87149.0,0.02291738]
[1766587926312,0.02291738,87156.0,87147.0,0.00010644]
[1766587926721,0.02291738,87156.0,87147.0,4.4e-07]
[1766587926875,0.01147381,87155.0,87136.0,0.01172]
[1766587927078,0.00010613,87155.0,87137.0,0.00011]
[1766587927485,0.44908657,87150.0,87137.0,0.00011]
[1766587927668,0.44908657,87150.0,87133.0,0.01046199]
[1766587927869,0.00011,87137.0,87133.0,0.01046199]
[1766587928065,0.000666,87133.0,87123.0,0.00011]
[1766587928532,0.5071366,87133.0,87123.0,0.00011]
[1766587928762,0.44908657,87133.0,87123.0,0.00011]
[1766587929366,0.46056327,87133.0,87123.0,0.00011]
[1766587929569,1.80631657,87133.0,87111.0,0.04588]
[1766587930062,0.01147683,87132.0,87111.0,0.04588]
[1766587930273,0.01147683,87132.0,87109.0,0.01172]
[1766587930274,1.35723,87130.0,87107.0,0.01148013]
[1766587930555,0.05738222,87136.0,87111.0,0.02291738]
[1766587930556,0.01172,87129.0,87111.0,0.02291738]
[1766587930691,0.01172,87128.0,87111.0,0.02291738]
[1766587930896,0.02291738,87139.0,87103.0,0.01172]
[1766587930897,0.01172,87127.0,87103.0,0.01172]
[1766587931096,0.44908657,87120.0,87103.0,0.01172]
[1766587931330,0.01147894,87116.0,87103.0,0.01172]
[1766587931549,0.44908657,87113.0,87095.0,0.02320171]
[1766587931775,0.01172,87119.0,87095.0,0.01207509]
[1766587932208,0.01172,87119.0,87096.0,0.03439896]
[1766587932415,0.01172,87119.0,87102.0,0.06888463]
[1766587932659,1.35723,87137.0,87114.0,0.01147921]
[1766587932866,0.01172,87136.0,87114.0,0.01147921]
[1766587933071,1.80631657,87130.0,87111.0,0.01172]
[1766587933280,0.44908657,87121.0,87111.0,0.01172]
[1766587933495,0.44908657,87121.0,87099.0,0.22962133]
[1766587933496,0.01172,87129.0,87109.0,0.01147987]
[1766587933700,0.01172,87129.0,87105.0,0.01172]
[1766587933903,0.01147763,87126.0,87105.0,0.01172]
[1766587934267,0.03053471,87156.0,87110.0,0.01147973]
[1766587934268,1.35723,87128.0,87110.0,0.01147973]
[1766587934494,0.00011,87143.0,87126.0,0.000433]
[1766587934697,0.44908657,87140.0,87126.0,0.000433]
[1766587934849,0.44908657,87140.0,87114.0,0.01172]
[1766587934850,1.35723,87136.0,87114.0,0.01172]
[1766587935058,0.02291738,87142.0,87087.0,0.02291738]
[1766587935059,0.44908657,87130.0,87087.0,0.02291738]
[1766587935268,0.44908657,87120.0,87101.0,0.02291738]
[1766587935496,0.01172,87120.0,87101.0,0.0343983]
[1766587935696,0.02291738,87128.0,87104.0,0.01148052]
[1766587935929,0.02291738,87128.0,87101.0,0.02327247]
[1766587935930,0.02319802,87123.0,87101.0,0.02327247]
[1766587936058,1.35723,87119.0,87101.0,0.00035509]
[1766587936424,1.356797,87119.0,87101.0,0.00035509]
[1766587936713,1.356797,87119.0,87109.0,0.00011]
[1766587936918,0.00011,87109.0,87101.0,0.00035509]
[1766587937131,0.01172,87116.0,87101.0,0.00035509]
[1766587937342,0.01172,87116.0,87101.0,0.06924059]
[1766587937592,0.01172,87116.0,87101.0,0.00035509]
[1766587937795,0.01172,87116.0,87104.0,0.01148052]
[1766587938014,0.01172,87116.0,87102.0,0.02291738]
[1766587938441,0.01172,87116.0,87101.0,0.00035509]
[1766587939453,0.01172,87116.0,87102.0,0.01148079]
[1766587939660,0.01172,87116.0,87101.0,0.00035509]
[1766587939856,0.01172,87116.0,87101.0,0.01183601]
[1766587940034,0.01172,87117.0,87102.0,0.03439817]
[1766587940411,0.01172,87120.0,87104.0,0.01148052]
[1766587940619,1.35723,87119.0,87101.0,0.01183601]
[1766587940830,1.35723,87119.0,87101.0,0.00035509]
[1766587941034,1.35723,87114.0,87101.0,0.00035509]
[1766587941660,0.46080657,87120.0,87101.0,0.00035509]
[1766587941897,0.01147749,87127.0,87101.0,0.00035509]
[1766587941898,1.35723,87127.0,87101.0,0.00035509]
[1766587942122,1.35723,87127.0,87107.0,0.06888062]
[1766587942325,0.01172,87126.0,87108.0,0.01148]
[1766587942526,0.01172,87126.0,87108.0,0.06887991]
[1766587942671,0.00011,87129.0,87116.0,0.06887356]
[1766587942885,1.35723,87139.0,87119.0,0.06887094]
[1766587942886,1.35557199,87139.0,87119.0,0.06887094]
[1766587943054,0.01172,87135.0,87117.0,0.02291738]
[1766587943250,1.35723,87129.0,87109.0,0.01172]
[1766587943493,0.01172,87128.0,87112.0,0.01147947]
[1766587943694,1.35723,87129.0,87112.0,0.01147947]
[1766587943950,1.35723,87127.0,87109.0,0.01172]
[1766587944501,1.35723,87127.0,87116.0,0.02291738]
[1766587944702,1.35723,87139.0,87118.0,0.01147868]
[1766587944880,0.01172,87138.0,87119.0,0.06887112]
[1766587945086,0.01172,87138.0,87116.0,0.02291738]
[1766587945087,1.35723,87151.0,87120.0,0.02319842]
[1766587945279,0.01172,87145.0,87120.0,0.01172]
[1766587945507,0.01172,87145.0,87120.0,0.08059043]
[1766587945738,0.01172,87145.0,87130.0,0.02291738]
[1766587946146,0.01172,87145.0,87123.0,0.01147802]
[1766587946546,0.01172,87145.0,87121.0,0.06886914]
[1766587946547,0.01172,87145.0,87121.0,0.22956394]
[1766587946746,0.01172,87145.0,87120.0,0.01172]
[1766587946747,1.35723,87151.0,87134.0,0.01147657]
[1766587946953,1.35723,87151.0,87139.0,0.01147591]
[1766587947113,1.35748203,87164.0,87130.0,0.02291738]
[1766587947318,1.35748203,87164.0,87142.0,0.06885302]
[1766587947319,0.01172,87162.0,87142.0,0.06885302]
[1766587947523,0.01172,87162.0,87132.0,0.01172]
[1766587947524,0.000549,87142.0,87132.0,0.01172]
[1766587947739,1.35723,87144.0,87130.0,0.00010613]
[1766587947946,1.36895,87144.0,87130.0,0.00010613]
[1766587948418,1.4369,87139.0,87116.0,0.02291738]
[1766587948737,0.44908657,87140.0,87102.0,0.06883738]
[1766587948738,0.000883,87116.0,87102.0,0.06883738]
[1766587948886,0.02319776,87125.0,87105.0,0.01172]
[1766587949086,1.4369,87124.0,87106.0,0.00011]
[1766587949298,0.01172,87125.0,87107.0,0.01148013]
[1766587949662,0.01172,87131.0,87125.0,0.00011]
[1766587950063,0.01172,87131.0,87113.0,0.01172]
[1766587950491,0.02319697,87131.0,87113.0,0.01172]
[1766587950889,0.01172,87131.0,87113.0,0.01172]
[1766587951513,0.01172,87135.0,87117.0,0.02291738]
[1766587952155,1.44862,87135.0,87117.0,0.02291738]
[1766587952288,1.44862,87135.0,87118.0,0.02291738]
[1766587952992,0.01172,87135.0,87118.0,0.02291738]
[1766587953191,0.01172,87135.0,87120.0,0.01147842]
[1766587953192,0.00993,87135.0,87120.0,0.01147842]
[1766587953399,0.00011,87140.0,87135.0,0.00011]
[1766587953779,0.00011,87140.0,87129.0,0.01172]
[1766587954247,0.00011,87140.0,87121.0,0.02319828]
[1766587954420,0.00011,87140.0,87123.0,0.01147802]
[1766587954989,0.00011,87140.0,87132.0,0.02291738]
[1766587955131,0.00011,87140.0,87122.0,0.01147815]
[1766587955488,0.00011,87140.0,87123.0,0.06886809]
[1766587955688,1.44858,87146.0,87119.0,0.04592]
[1766587955823,1.4369,87144.0,87119.0,0.04592]
[1766587956030,1.4369,87144.0,87123.0,0.05739005]
[1766587956209,1.4369,87144.0,87125.0,0.06886614]
[1766587956406,0.00011,87157.0,87130.0,0.0114771]
[1766587956611,1.44858,87156.0,87130.0,0.0114771]
[1766587956811,0.02457516,87155.0,87130.0,0.0114771]
[1766587957010,0.02457516,87155.0,87131.0,0.01147697]
[1766587957311,0.02457516,87155.0,87139.0,0.01147591]
[1766587957572,0.02457516,87155.0,87132.0,0.02291738]
[1766587957573,0.0002164,87157.0,87155.0,0.000549]
[1766587957979,0.0002164,87157.0,87140.0,0.01168]
[1766587958333,0.0002164,87157.0,87146.0,0.02291738]
[1766587959247,0.0002164,87157.0,87140.0,0.01168]
[1766587960349,0.0002164,87157.0,87146.0,0.02291738]
[1766587960897,0.01168,87161.0,87146.0,0.02291738]
[1766587961100,0.01168,87163.0,87147.0,0.06884912]
[1766587961299,1.4369,87169.0,87147.0,0.01147486]
[1766587961514,0.01168,87163.0,87146.0,0.02302378]
[1766587961712,0.01168,87163.0,87147.0,0.01147486]
[1766587961923,0.01168,87163.0,87146.0,0.02302378]
[1766587962124,0.01168,87163.0,87147.0,0.06884911]
[1766587962584,1.4369,87169.0,87147.0,0.06884911]
[1766587962585,0.01168,87162.0,87148.0,0.01147473]
[1766587962839,1.46597,87162.0,87147.0,0.01168]
[1766587962975,1.45429,87162.0,87147.0,0.01168]
[1766587963177,1.46597,87162.0,87147.0,0.01168]
[1766587965035,1.45429,87162.0,87147.0,0.01168]
[1766587965612,1.45429,87162.0,87144.0,0.00022294]
[1766587965613,0.000549,87147.0,87144.0,0.00022294]
[1766587965793,0.000549,87147.0,87125.0,0.04592]
[1766587965794,0.00021906,87144.0,87136.0,0.00995943]
[1766587965999,0.000217,87136.0,87125.0,0.04592]
[1766587966196,1.46576539,87143.0,87126.0,0.01168]
[1766587966437,1.45429,87143.0,87126.0,0.01168]
[1766587967798,1.45429,87139.0,87121.0,0.01168]
[1766587968023,1.46597,87139.0,87122.0,0.02291738]
[1766587968623,1.25879967,87139.0,87122.0,0.02291738]
[1766587969627,0.01147631,87136.0,87121.0,0.01178646]
[1766587969843,0.00055,87122.0,87121.0,0.01178646]
[1766587970014,0.01168,87132.0,87121.0,0.00010646]
[1766587970432,0.01168,87132.0,87122.0,0.02291738]
[1766587970656,0.88898924,87150.0,87122.0,0.02291738]
[1766587970657,1.45429,87155.0,87122.0,0.02291738]
[1766587970857,1.45429,87155.0,87141.0,0.02291738]
[1766587971053,1.45429,87155.0,87140.0,0.01168]
[1766587971455,1.45429,87154.0,87140.0,0.01168]
[1766587971716,0.05747869,87156.0,87140.0,0.01168]
[1766587971717,0.01158367,87156.0,87140.0,0.01168]
[1766587971870,0.01158367,87156.0,87121.0,0.01158474]
[1766587971871,1.51166372,87148.0,87121.0,0.00010646]
[1766587972074,0.00055,87140.0,87123.0,0.01168]
[1766587972275,1.46631578,87140.0,87123.0,0.01168]
[1766587972478,1.45429,87140.0,87123.0,0.01168]
[1766587972870,1.45429,87137.0,87123.0,0.01168]
[1766587973075,1.45429,87137.0,87121.0,0.00010646]
[1766587973076,0.00055,87123.0,87121.0,0.00010646]
[1766587973626,0.06886357,87129.0,87121.0,0.00010646]
[1766587973759,0.01147697,87131.0,87121.0,0.00010646]
[1766587973958,1.46597,87132.0,87122.0,0.02291738]
[1766587975062,1.46597,87132.0,87122.0,0.02236738]
[1766587975484,1.47744683,87132.0,87122.0,0.02236738]
[1766587975733,1.46597,87132.0,87122.0,0.02236738]
[1766587976747,0.01147789,87124.0,87106.0,0.00011]
[1766587976938,0.01147921,87114.0,87106.0,0.00011]
[1766587977162,0.01147881,87117.0,87106.0,0.00011]
[1766587977362,1.45429,87113.0,87096.0,0.01168]
[1766587977568,1.45429,87113.0,87102.0,0.02291738]
[1766587977782,0.0114796,87111.0,87102.0,0.02291738]
[1766587977980,0.01147973,87110.0,87102.0,0.02291738]
[1766587978317,0.01147973,87110.0,87096.0,0.01168]
[1766587978318,0.01148,87108.0,87096.0,0.01168]
[1766587978496,0.01148052,87104.0,87096.0,0.01168]
[1766587978669,0.06888599,87101.0,87091.0,0.04592]
[1766587978866,0.01148105,87100.0,87089.0,0.01168]
[1766587979074,0.01148092,87101.0,87089.0,0.01168]
[1766587979277,0.01148079,87102.0,87089.0,0.01168]
[1766587979453,1.45811,87104.0,87089.0,0.01168]
[1766587979655,1.45811,87102.0,87089.0,0.01168]
[1766587979859,1.45811,87091.0,87063.0,0.05740593]
[1766587980044,0.0114829,87086.0,87063.0,0.04592]
[1766587980245,1.45811,87086.0,87069.0,0.01168]
[1766587980469,1.45811,87086.0,87084.0,0.02291738]
[1766587980668,1.457561,87086.0,87084.0,0.02291738]
[1766587981070,1.457561,87086.0,87084.0,0.02327247]
[1766587981280,1.45811,87075.0,87056.0,0.02291738]
[1766587981617,0.04592,87086.0,87056.0,0.02291738]
[1766587981619,1.45811,87085.0,87070.0,0.02291738]
[1766587981838,1.45811,87098.0,87070.0,0.02291738]
[1766587982039,1.45811,87098.0,87071.0,0.01148488]
[1766587982040,1.46979,87097.0,87071.0,0.01148488]
[1766587982275,0.01148211,87092.0,87070.0,0.02291738]
[1766587982482,0.04592,87098.0,87070.0,0.02291738]
[1766587982483,1.45811,87087.0,87070.0,0.02291738]
[1766587982600,1.46979,87087.0,87070.0,0.02291738]
[1766587983254,0.01168,87086.0,87070.0,0.03440239]
[1766587983458,1.45811,87099.0,87084.0,0.02291738]
[1766587983667,0.01168,87098.0,87084.0,0.02291738]
[1766587983867,1.46979,87098.0,87084.0,0.02291738]
[1766587984307,0.00011,87104.0,87085.0,0.01168]
[1766587984484,0.00011,87104.0,87099.0,0.02291738]
[1766587984745,1.45811,87110.0,87085.0,0.02316303]
[1766587984982,1.45811,87110.0,87098.0,0.02291738]
[1766587985184,0.00011,87109.0,87098.0,0.02291738]
[1766587985559,0.00046465,87109.0,87098.0,0.02291738]
[1766587987040,0.00046465,87109.0,87098.0,0.01143488]
[1766587988429,0.01168,87115.0,87098.0,0.01143488]
[1766587988627,0.22955201,87127.0,87098.0,0.01143488]
[1766587988628,0.00011,87123.0,87115.0,0.000549]
[1766587989036,0.00011,87123.0,87112.0,0.03459738]
[1766587989416,0.00011,87123.0,87113.0,0.01168]
[1766587993183,0.01168,87136.0,87123.0,0.00011]
[1766587993388,0.01168,87136.0,87126.0,0.02291738]
[1766587994746,0.00010637,87136.0,87127.0,0.01168]
[1766587995288,0.00010637,87136.0,87127.0,0.01113]
[1766587995289,1.46958644,87135.0,87127.0,0.01113]
[1766587995489,0.01147789,87124.0,87112.0,0.02291738]
[1766587995736,0.0114771,87130.0,87117.0,0.00011]
[1766587995943,0.05738821,87126.0,87117.0,0.00011]
[1766587996147,1.45811,87128.0,87117.0,0.00011]
[1766587996367,0.01147749,87127.0,87117.0,0.00011]
[1766587996507,0.22954403,87130.0,87098.0,0.01143488]
[1766587996508,1.45811,87124.0,87098.0,0.01143488]
[1766587996706,0.45897811,87151.0,87098.0,0.01143488]
[1766587996707,1.45811,87119.0,87098.0,0.01143488]
[1766587996952,1.45811,87116.0,87104.0,0.01168]
[1766587997401,1.51550636,87114.0,87092.0,0.01168]
[1766587997581,1.46958921,87114.0,87092.0,0.01168]
[1766587997804,1.45811,87114.0,87092.0,0.01168]
[1766587998018,0.01147934,87113.0,87092.0,0.01168]
[1766587998167,1.45811,87114.0,87092.0,0.01168]
[1766587998365,1.46958921,87114.0,87092.0,0.01168]
[1766587998580,1.45811,87114.0,87092.0,0.01168]
[1766587998762,1.45811,87114.0,87105.0,0.02291738]
[1766587998958,1.46958921,87114.0,87105.0,0.02291738]
[1766587999163,0.0114796,87111.0,87092.0,0.01168]
[1766587999359,1.51550625,87114.0,87092.0,0.01168]
[1766587999593,1.45811,87114.0,87105.0,0.02291738]
[1766588000211,1.52698527,87114.0,87105.0,0.02291738]
[1766588000477,0.05739737,87112.0,87105.0,0.02291738]
[1766588000612,1.52698684,87112.0,87100.0,0.01168]
[1766588000818,1.46958947,87112.0,87100.0,0.01168]
[1766588001318,1.45811,87112.0,87100.0,0.01168]
[1766588001637,0.01148066,87103.0,87094.0,0.01168]
[1766588001837,1.46959092,87101.0,87091.0,0.02291738]
[1766588002096,0.01148118,87099.0,87091.0,0.03459738]
[1766588002313,0.06888633,87100.0,87091.0,0.02291738]
[1766588002481,0.01148118,87099.0,87092.0,0.02291738]
[1766588002688,0.01148131,87098.0,87089.0,0.01179]
[1766588002839,0.01148131,87098.0,87092.0,0.00035465]
[1766588003049,2.11760786,87101.0,87092.0,0.00035465]
[1766588003241,1.48127092,87101.0,87092.0,0.00035465]
[1766588003450,0.01148145,87097.0,87092.0,0.00035465]
[1766588003850,0.01148145,87097.0,87089.0,0.01179]
[1766588003851,0.05741187,87090.0,87089.0,0.00011]